bitfinex-derivatives/quotes_ETHF0:USTF0_20251007
["timestamp","ask_amount","ask_price","bid_price","bid_amount"]
[1759830007797,0.3225,4680.1,4680.0,0.72359363]
[1759830007994,1.12347,4680.1,4680.0,0.7478]
[1759830008299,1.12347,4680.1,4680.0,1.13218]
[1759830008896,0.1235,4680.0,4679.8,0.00224238]
[1759830009094,0.4166,4679.3,4679.2,3.2078]
[1759830009299,0.7391,4679.3,4679.2,3.847]
[1759830009490,0.7391,4679.3,4679.2,4.1696]
[1759830009692,1.12354,4679.3,4679.2,4.55405]
[1759830009887,0.38445,4679.1,4679.0,0.2151]
[1759830010098,0.80105,4679.1,4679.0,0.4314218]
[1759830010396,0.80105,4679.1,4679.0,0.2163218]
[1759830010397,1.12355,4679.1,4679.0,0.2163218]
[1759830010602,0.7391,4679.1,4679.0,0.4314218]
[1759830010790,0.7391,4679.1,4679.0,0.9641218]
[1759830011999,0.7391,4679.1,4679.0,0.6415218]
[1759830012801,0.7391,4679.1,4679.0,0.9641218]
[1759830012996,0.1235,4680.0,4679.5,0.3226]
[1759830013202,0.5337,4679.9,4679.8,0.7478]
[1759830017005,0.7391,4679.9,4679.8,0.7478]
[1759830018102,0.5337,4679.9,4679.8,0.7478]
[1759830018412,0.5337,4680.4,4680.3,0.7478]
[1759830018601,0.5337,4680.4,4680.3,0.9618]
[1759830018801,0.7391,4680.4,4680.3,0.9618]
[1759830019206,0.7391,4680.4,4680.3,1.34615]
[1759830019605,0.7391,4680.4,4680.3,0.9618]
[1759830019808,0.7391,4680.4,4680.3,0.6392]
[1759830020206,0.7391,4680.4,4680.3,0.9618]
[1759830020904,0.7391,4680.4,4680.3,1.34615]
[1759830021114,1.12345,4680.4,4680.3,1.34615]
[1759830021612,3.50364376,4681.0,4680.3,1.34615]
[1759830021613,0.5337,4680.7,4680.6,0.91702]
[1759830021802,0.5337,4680.7,4680.6,1.34612]
[1759830022412,0.91802,4680.7,4680.6,1.34612]
[1759830022813,0.5337,4680.7,4680.6,1.34612]
[1759830024715,1.00160321,4680.7,4680.6,1.34612]
[1759830024913,0.5337,4680.7,4680.6,1.34612]
[1759830028720,0.38431,4680.8,4679.9,4.16877]
[1759830028721,0.83034,4680.5,4680.1,0.3226]
[1759830028918,0.38438,4680.0,4679.9,3.2078]
[1759830029113,0.38438,4680.0,4679.1,2.49267034]
[1759830029114,0.8626,4679.5,4679.4,4.12993]
[1759830029317,0.5337,4679.5,4679.4,4.55403]
[1759830029516,0.5401,4680.0,4679.9,0.38439]
[1759830029721,0.5401,4680.0,4679.9,1.02359]
[1759830030012,0.5401,4680.0,4679.9,1.34619]
[1759830030215,0.8626,4680.0,4679.9,1.34619]
[1759830030618,0.8626,4680.0,4679.9,1.02359]
[1759830030815,0.8626,4680.0,4679.9,0.214]
[1759830031722,1.24698,4680.0,4679.8,0.3844]
[1759830031920,1.24698,4680.0,4679.9,0.214]
[1759830032826,1.2571034,4680.0,4679.9,0.214]
[1759830034027,1.26506547,4680.0,4679.9,0.214]
[1759830034229,1.26506547,4680.0,4679.9,0.4291]
[1759830035324,0.88068547,4680.0,4679.9,0.9642]
[1759830036831,0.88068547,4680.0,4679.9,1.34859]
[1759830039229,0.88068547,4680.0,4679.9,1.02779]
[1759830040327,0.88068547,4680.0,4679.9,1.33849]
[1759830040928,0.88068547,4680.0,4679.9,1.02779]
[1759830042129,0.88068547,4680.0,4679.9,1.33849]
[1759830042529,0.88068547,4680.0,4679.9,4.54629]
[1759830042729,0.3254,4680.8,4680.7,0.38432]
[1759830042922,0.3254,4680.8,4680.7,1.31122]
[1759830042923,0.539,4680.8,4680.7,1.31122]
[1759830043727,0.539,4680.8,4680.7,4.51902]
[1759830043930,0.75345553,4681.4,4681.3,0.1997]
[1759830044131,0.75345553,4681.4,4681.3,0.4137]
[1759830044132,1.22189464,4681.4,4681.3,0.4137]
[1759830044331,1.22189464,4681.4,4681.3,0.214]
[1759830044636,1.22189464,4681.4,4681.3,0.4137]
[1759830044831,1.22189464,4681.4,4681.3,0.6162]
[1759830045235,0.75345553,4681.4,4681.3,0.6162]
[1759830045432,0.75345553,4681.4,4681.3,0.9269]
[1759830045736,0.32795553,4681.4,4681.3,0.9269]
[1759830046031,0.00255553,4681.4,4681.3,0.9269]
[1759830046637,0.00255553,4681.4,4681.3,4.1347]
[1759830047134,0.00255553,4681.4,4681.3,3.9207]
[1759830048637,0.32795553,4681.4,4681.3,3.9207]
[1759830048839,0.54155553,4681.4,4681.3,3.9207]
[1759830049438,0.75345553,4681.4,4681.3,0.1997]
[1759830050137,0.75345553,4681.4,4681.3,0.4022]
[1759830052838,0.75345553,4681.4,4681.3,0.7129]
[1759830053242,0.00255553,4681.4,4681.3,0.7129]
[1759830054437,0.54155553,4681.4,4681.3,1.09717]
[1759830054632,0.75345553,4681.4,4681.3,0.78647]
[1759830054935,1.13771553,4681.4,4681.3,0.1997]
[1759830056141,1.13771553,4681.4,4681.3,0.7129]
[1759830056340,1.13771553,4681.4,4681.3,0.4022]
[1759830056942,0.4255,4681.2,4681.1,0.58399]
[1759830057145,0.7509,4681.2,4681.1,0.58399]
[1759830057331,0.7509,4681.2,4681.1,1.09719]
[1759830058942,0.76639888,4681.2,4681.1,1.09719]
[1759830059945,0.77381615,4681.2,4681.1,1.09719]
[1759830060146,1.15809615,4681.2,4681.1,1.09719]
[1759830060448,0.77381615,4681.2,4681.1,1.09719]
[1759830060948,0.78028561,4681.2,4681.1,1.09719]
[1759830063843,1.16456561,4681.2,4681.1,1.09719]
[1759830064349,0.78028561,4681.2,4681.1,1.09719]
[1759830065348,0.02938561,4681.2,4681.1,1.09719]
[1759830066751,0.00255553,4681.4,4681.3,1.08813362]
[1759830066752,0.31715553,4681.4,4681.3,1.08813362]
[1759830066951,0.52945553,4681.4,4681.3,1.08813362]
[1759830067851,0.74965553,4681.4,4681.3,0.76713362]
[1759830068153,0.7471,4680.9,4680.8,3.628]
[1759830068353,1.04484,4680.5,4680.4,0.2204]
[1759830068553,0.7471,4680.4,4680.3,3.81255]
[1759830069155,0.7471,4680.4,4680.3,3.2078]
[1759830069361,0.7471,4680.4,4680.3,3.4282]
[1759830070453,0.75820655,4680.4,4680.3,3.4282]
[1759830070855,0.75820655,4680.4,4680.3,3.949]
[1759830073159,0.75978444,4680.4,4680.3,3.949]
[1759830073959,0.32728444,4680.4,4680.3,3.949]
[1759830074162,0.75978444,4680.4,4680.3,3.949]
[1759830074762,0.53958444,4680.4,4680.3,3.949]
[1759830076662,0.32728444,4680.4,4680.3,3.949]
[1759830077563,0.01268444,4680.4,4680.3,3.949]
[1759830078061,0.00255553,4681.4,4681.3,1.12547]
[1759830078362,0.31715553,4681.4,4681.3,1.12547]
[1759830079163,0.00255553,4681.4,4681.3,1.12547]
[1759830079865,0.8728,4681.0,4680.8,0.38431]
[1759830080062,1.2571,4681.0,4680.9,0.2204]
[1759830080372,0.8728,4681.0,4680.9,0.2204]
[1759830082672,0.8728,4681.0,4680.9,0.7412]
[1759830083168,0.8728,4681.0,4680.9,0.4202]
[1759830083559,0.7471,4680.6,4680.5,4.13354]
[1759830083761,0.5582,4680.5,4680.4,0.38435]
[1759830083962,0.8728,4680.5,4680.4,0.38435]
[1759830084167,0.5582,4680.5,4680.0,3.2078]
[1759830084369,0.3146,4680.4,4680.3,0.2204]
[1759830084573,0.7471,4680.4,4680.3,0.2204]
[1759830085272,0.7471,4680.4,4680.3,0.60476]
[1759830086169,0.7471,4680.2,4680.1,0.60477]
[1759830086469,0.81687,4680.2,4680.0,3.2078]
[1759830086668,0.7471,4680.1,4680.0,3.81257]
[1759830087571,0.7471,4680.1,4680.0,4.01237]
[1759830087970,0.7471,4680.1,4680.0,4.33337]
[1759830088769,0.7471,4680.1,4680.0,1.12557]
[1759830089165,0.7471,4680.1,4680.0,0.80457]
[1759830089668,0.7471,4679.7,4679.6,0.80461]
[1759830089871,0.7471,4679.7,4679.6,1.12561]
[1759830091074,1.25722,4679.5,4679.4,0.2204]
[1759830091369,0.4325,4679.1,4679.0,3.4305218]
[1759830091668,0.7471,4679.1,4679.0,3.4305218]
[1759830091872,0.7471,4679.1,4679.0,3.6303218]
[1759830092063,0.7471,4679.1,4679.0,3.9513218]
[1759830092266,0.7471,4679.1,4679.0,0.7435218]
[1759830092570,0.7471,4679.1,4679.0,0.2227218]
[1759830092872,0.7471,4679.1,4679.0,0.0023218]
[1759830093272,0.7471,4679.1,4679.0,0.2227218]
[1759830093672,0.7471,4679.1,4679.0,0.4225218]
[1759830093863,0.7471,4679.1,4679.0,0.0023218]
[1759830094264,0.7471,4679.1,4679.0,0.7435218]
[1759830094568,0.5269,4679.1,4679.0,0.7435218]
[1759830094770,0.51012,4679.5,4679.0,3.7309218]
[1759830094963,0.51012,4679.5,4679.3,0.7334]
[1759830094964,0.5189,4679.4,4679.3,0.7334]
[1759830095369,0.731,4679.4,4679.3,0.7334]
[1759830096978,0.74809106,4679.4,4679.3,0.7334]
[1759830097476,0.54599106,4679.4,4679.3,0.7334]
[1759830097879,0.75553659,4679.4,4679.3,0.7334]
[1759830098376,0.02563659,4679.4,4679.3,0.7334]
[1759830099078,0.5289,4679.8,4679.7,0.77106933]
[1759830099279,0.7299,4679.8,4679.7,1.07566933]
[1759830099481,0.5289,4679.8,4679.7,1.07566933]
[1759830099676,0.7299,4679.8,4679.7,1.07566933]
[1759830100778,0.7299,4679.8,4679.7,0.77106933]
[1759830101180,0.7299,4679.8,4679.7,0.38666933]
[1759830102177,0.7299,4679.8,4679.7,0.69126933]
[1759830102572,0.5289,4679.8,4679.7,0.69126933]
[1759830102781,3.6162,4680.3,4680.2,0.7176]
[1759830103182,3.6162,4680.3,4680.2,0.413]
[1759830103487,3.9377,4680.3,4680.2,0.413]
[1759830103781,0.7299,4680.3,4680.2,0.413]
[1759830104581,0.7299,4680.3,4680.2,0.7176]
[1759830105181,0.7299,4680.3,4680.2,0.79736]
[1759830106784,0.7299,4680.3,4680.2,1.10196]
[1759830106972,0.74150285,4680.3,4680.2,1.10196]
[1759830107172,0.54050285,4680.3,4680.2,1.10196]
[1759830108176,0.54905076,4680.3,4680.2,1.10196]
[1759830109177,0.55759867,4680.3,4680.2,1.10196]
[1759830109578,0.02869867,4680.3,4680.2,1.10196]
[1759830110580,0.55759867,4680.3,4680.2,1.10196]
[1759830110781,0.75859867,4680.3,4680.2,1.10196]
[1759830110981,0.55759867,4680.3,4680.2,1.10196]
[1759830111177,0.35019867,4680.3,4680.2,1.10196]
[1759830111378,0.02869867,4680.3,4680.2,1.10196]
[1759830113788,0.35019867,4680.3,4680.2,1.10196]
[1759830114296,0.55759867,4680.3,4680.2,1.10196]
[1759830114588,0.75859867,4680.3,4680.2,1.10196]
[1759830115284,1.14294867,4680.3,4680.2,0.413]
[1759830115580,0.7299,4679.7,4679.6,0.1997]
[1759830115785,0.70591,4679.6,4679.5,3.2078]
[1759830116090,1.11431,4679.6,4679.5,3.4075]
[1759830116287,1.14300867,4679.6,4679.5,3.4075]
[1759830117283,0.75859867,4679.6,4679.5,3.4075]
[1759830117483,0.75859867,4679.6,4679.5,3.6208]
[1759830117687,0.75859867,4679.6,4679.5,3.9254]
[1759830118083,0.75859867,4679.6,4679.5,0.1997]
[1759830121381,0.75859867,4679.6,4679.0,0.0023218]
[1759830121382,0.59185,4679.1,4679.0,0.0023218]
[1759830121587,1.11435,4679.1,4679.0,0.0023218]
[1759830122285,1.14304867,4679.1,4679.0,0.0023218]
[1759830123696,0.7299,4678.4,4678.3,3.2078]
[1759830123990,0.7299,4678.4,4678.3,3.4075]
[1759830124392,0.75859867,4678.4,4678.3,3.4075]
[1759830124588,0.75859867,4678.4,4678.3,3.40920978]
[1759830125390,0.75859867,4678.4,4678.3,3.94350978]
[1759830126094,0.75859867,4678.4,4678.3,3.40920978]
[1759830126688,0.75859867,4678.4,4678.3,3.20950978]
[1759830129397,0.75929156,4678.4,4678.3,3.20950978]
[1759830129996,0.55829156,4678.4,4678.3,3.96290978]
[1759830130192,0.02939156,4678.4,4678.3,3.96290978]
[1759830131898,0.02939156,4678.4,4678.3,8.96290978]
[1759830132100,0.38441,4679.7,4679.5,0.331]
[1759830132295,0.93021,4679.7,4679.6,0.7534]
[1759830133496,1.13671,4679.7,4679.6,0.7534]
[1759830134999,1.13671,4679.7,4679.6,0.4224]
[1759830135704,0.7523,4679.7,4679.6,0.7534]
[1759830136393,0.76943284,4679.7,4679.6,0.7534]
[1759830137397,0.77799926,4679.7,4679.6,0.7534]
[1759830138201,0.57149926,4679.7,4679.6,0.7534]
[1759830138400,0.35718561,4679.7,4679.6,0.7534]
[1759830138801,0.57518561,4679.7,4679.6,0.7534]
[1759830139806,0.1251,4679.5,4679.3,3.2078]
[1759830140105,0.7523,4678.8,4678.7,3.4269]
[1759830140306,0.7523,4678.4,4678.3,0.00170978]
[1759830140602,0.78168561,4678.4,4678.3,0.00170978]
[1759830140806,0.78168561,4678.4,4678.3,0.22080978]
[1759830141308,0.78168561,4678.4,4678.3,0.75510978]
[1759830141507,0.57518561,4678.4,4678.3,0.75510978]
[1759830141808,0.02938561,4678.4,4678.3,0.75510978]
[1759830143804,0.57518561,4678.4,4678.3,0.75510978]
[1759830144001,0.78168561,4678.4,4678.3,0.42410978]
[1759830144307,0.57518561,4678.4,4678.3,0.75510978]
[1759830144499,0.02938561,4678.4,4678.3,0.75510978]
[1759830145608,0.02938561,4678.4,4678.3,5.75510978]
[1759830145901,0.02938561,4678.4,4678.3,7.28665012]
[1759830146297,0.218,4679.8,4679.7,0.2191]
[1759830146498,0.3278,4679.8,4679.7,4.3456]
[1759830147201,0.4544,4680.0,4679.9,0.80679]
[1759830147403,0.6724,4680.0,4679.9,1.13779]
[1759830148105,3.2078,4680.7,4679.7,3.2078]
[1759830148106,3.2078,4680.7,4680.6,0.38433]
[1759830148303,3.4258,4680.7,4680.6,1.13773]
[1759830148504,3.44293924,4680.7,4680.6,1.13773]
[1759830148809,3.77073924,4680.7,4680.6,1.13773]
[1759830149106,0.01713924,4680.7,4680.6,4.34553]
[1759830149503,0.5458,4681.3,4681.2,0.7809976]
[1759830149705,0.7523,4681.3,4681.2,0.7809976]
[1759830150112,0.7523,4681.3,4681.2,1.1119976]
[1759830150803,0.7523,4681.3,4681.2,0.7809976]
[1759830153520,0.5458,4681.3,4681.2,1.1119976]
[1759830154914,0.7523,4681.3,4681.2,0.2191]
[1759830156213,0.7523,4681.3,4681.1,0.38428]
[1759830157403,0.2065,4680.8,4680.7,0.2158]
[1759830157609,0.4244,4680.8,4680.7,0.60012]
[1759830158014,0.7275,4680.8,4680.7,0.60012]
[1759830158210,0.7275,4680.8,4680.7,0.38432]
[1759830160617,0.7275,4680.8,4680.7,0.60392]
[1759830161017,0.7275,4680.8,4680.7,1.13222]
[1759830161209,0.5205,4681.0,4680.9,0.7479]
[1759830163417,0.3031,4681.3,4680.9,0.4305]
[1759830163618,0.7381,4681.3,4681.2,0.81478]
[1759830163809,0.7381,4681.3,4681.2,0.60388]
[1759830165229,0.7381,4681.3,4680.6,44.0078]
[1759830165526,0.7381,4681.1,4681.0,0.3843]
[1759830165724,0.4336,4681.0,4680.6,44.0078]
[1759830165915,0.435,4680.7,4680.6,44.39213]
[1759830166121,0.7381,4680.7,4680.6,44.39213]
[1759830166426,0.7381,4680.7,4680.6,4.34003]
[1759830166722,0.8686,4681.0,4680.9,1.13221]
[1759830166919,0.8686,4681.0,4680.9,0.81481]
[1759830167221,0.52305553,4681.4,4681.3,0.81477]
[1759830167420,0.74065553,4681.4,4681.3,0.81477]
[1759830168429,0.74065553,4681.4,4681.3,0.60387]
[1759830168727,0.74065553,4681.4,4681.3,0.38427]
[1759830168917,0.1305,4681.0,4680.8,0.38431]
[1759830169122,0.8686,4681.0,4680.9,0.2196]
[1759830169326,0.8686,4681.0,4680.9,0.60391]
[1759830169626,0.8686,4681.0,4680.9,0.81481]
[1759830171022,0.8686,4681.0,4680.9,0.60391]
[1759830171225,0.7381,4680.7,4680.6,3.81173]
[1759830171428,0.7381,4680.7,4680.6,4.02263]
[1759830171830,0.7381,4680.7,4680.6,4.34003]
[1759830173228,0.3031,4681.0,4680.9,1.13221]
[1759830173430,0.5205,4681.0,4680.9,1.13221]
[1759830174334,0.8686,4681.0,4680.9,0.60391]
[1759830174530,0.8686,4681.0,4680.9,0.38431]
[1759830174929,0.8686,4681.0,4680.9,0.60391]
[1759830175331,0.8686,4681.0,4680.9,0.81481]
[1759830176331,0.8686,4681.0,4680.9,0.4305]
[1759830176526,1.12242,4680.7,4680.6,3.2078]
[1759830176727,1.12242,4680.7,4680.1,41.1174]
[1759830176728,0.435,4680.2,4680.1,0.7479]
[1759830176932,0.7381,4680.2,4680.1,0.81487]
[1759830179942,0.7381,4680.2,4680.1,0.38437]
[1759830180137,0.7381,4680.2,4680.1,0.60397]
[1759830182037,0.1305,4680.0,4679.9,3.59219]
[1759830182236,0.8686,4680.0,4679.9,3.59219]
[1759830182933,1.25298,4680.0,4679.9,3.59219]
[1759830183434,0.8686,4680.0,4679.9,3.59219]
[1759830183843,1.25298,4680.0,4679.9,3.2078]
[1759830184139,0.7381,4679.2,4679.1,3.4274]
[1759830184731,0.7381,4679.2,4679.1,4.33575]
[1759830185135,0.5205,4679.2,4679.1,4.33575]
[1759830185745,0.5205,4679.2,4678.6,3.5208]
[1759830185746,0.4191,4679.2,4678.6,3.5208]
[1759830185944,0.7498,4679.1,4679.0,0.58746]
[1759830186345,0.3272,4679.1,4679.0,1.10556]
[1759830187247,0.8803,4679.5,4679.4,0.79253]
[1759830188545,0.8803,4679.5,4679.4,0.4081]
[1759830188741,0.8803,4679.5,4679.4,0.203]
[1759830188938,0.71164,4679.3,4679.1,0.38445]
[1759830189143,0.7498,4679.2,4679.1,0.58745]
[1759830189345,1.13425,4679.2,4679.1,0.58745]
[1759830189835,0.7498,4679.2,4679.1,0.58745]
[1759830190039,0.7498,4679.2,4679.1,1.10555]
[1759830191842,0.7498,4679.2,4679.1,0.79255]
[1759830192140,0.7498,4679.2,4679.1,0.4081]
[1759830192345,0.7498,4679.2,4679.1,0.79255]
[1759830192741,0.7498,4679.2,4679.1,0.4081]
[1759830192943,1.13425,4679.1,4679.0,0.38446]
[1759830193444,0.7498,4679.1,4679.0,0.38446]
[1759830193642,0.7498,4679.1,4679.0,0.58746]
[1759830193949,0.7498,4679.1,4679.0,1.10556]
[1759830194148,0.5481,4679.1,4679.0,1.10556]
[1759830197044,0.7498,4679.1,4679.0,0.79256]
[1759830197542,0.7498,4679.1,4679.0,1.10556]
[1759830198750,0.3514,4679.5,4679.4,1.10553]
[1759830198950,0.2209,4679.5,4679.4,1.10553]
[1759830199248,0.5481,4679.5,4679.4,1.10553]
[1759830199644,3.2078,4680.2,4680.1,0.38437]
[1759830199850,3.6304,4680.2,4680.1,0.79247]
[1759830200252,3.9576,4680.2,4680.1,0.79247]
[1759830201646,0.7498,4680.1,4680.0,0.38438]
[1759830202047,0.7498,4680.1,4680.0,0.58738]
[1759830202952,0.7498,4680.1,4680.0,1.10548]
[1759830203753,0.7498,4680.1,4680.0,0.79248]
[1759830204847,0.5481,4680.4,4680.3,1.10545]
[1759830206347,0.5427,4681.0,4680.9,0.58731]
[1759830206552,1.01058215,4681.0,4680.9,0.79241]
[1759830206947,0.8699,4681.0,4680.9,0.79241]
[1759830207147,0.8699,4681.0,4680.9,1.10541]
[1759830207356,0.5481,4681.0,4680.9,1.10541]
[1759830207556,0.3272,4681.0,4680.9,1.10541]
[1759830207848,0.5481,4681.0,4680.9,1.10541]
[1759830208051,0.5481,4681.0,4680.9,0.79241]
[1759830208052,0.8699,4681.0,4680.9,0.79241]
[1759830208954,0.8699,4681.0,4680.9,1.10541]
[1759830211857,0.3272,4680.9,4680.7,3.59211]
[1759830212154,0.7498,4680.8,4680.7,0.79241]
[1759830212853,0.76146231,4680.8,4680.7,0.79241]
[1759830215360,0.76146231,4680.8,4680.7,1.09591]
[1759830215548,0.01166231,4680.8,4680.7,4.30371]
[1759830216153,0.01166231,4680.8,4680.7,9.30371]
[1759830217558,0.01166231,4680.8,4680.7,50.10371]
[1759830218152,0.01166231,4680.8,4680.7,45.10371]
[1759830218358,0.33826231,4680.8,4680.7,45.10371]
[1759830220066,0.33826231,4680.8,4680.7,44.80021]
[1759830220262,0.33826231,4680.8,4680.7,45.11301]
[1759830221368,0.33826231,4680.8,4680.7,44.80021]
[1759830221665,0.76846231,4680.8,4680.7,3.59212]
[1759830221970,0.76846231,4680.8,4680.7,3.80532]
[1759830222358,0.76846231,4680.8,4680.7,3.421]
[1759830223270,0.55916231,4680.8,4680.7,3.9461]
[1759830226270,0.76846231,4680.8,4680.7,3.9461]
[1759830226475,0.76846231,4680.8,4680.7,3.6333]
[1759830226870,0.76846231,4680.8,4680.7,4.01762]
[1759830228970,0.76846231,4680.8,4680.7,4.33042]
[1759830229974,1.15277231,4680.8,4680.7,3.2078]
[1759830230668,0.81453,4680.6,4680.5,0.59754]
[1759830230867,1.15279231,4680.6,4680.5,0.59754]
[1759830231074,0.76846231,4680.6,4680.5,0.59754]
[1759830231274,0.76846231,4680.6,4680.2,0.91036]
[1759830231275,0.4302,4680.3,4680.2,0.91036]
[1759830231476,0.7568,4680.3,4680.2,1.12266]
[1759830231975,0.76846231,4680.3,4680.2,1.12266]
[1759830232578,0.33826231,4680.3,4680.2,1.12266]
[1759830233976,0.55916231,4680.3,4680.2,1.12266]
[1759830234170,1.15281231,4680.3,4680.2,0.2132]
[1759830234374,0.7568,4680.2,4680.1,3.59217]
[1759830234575,0.7568,4680.2,4680.1,3.80537]
[1759830235072,0.76846231,4680.2,4680.1,3.421]
[1759830236378,1.15282231,4680.2,4680.1,3.421]
[1759830237377,1.15282231,4680.2,4680.1,3.2078]
[1759830237578,0.7568,4679.9,4679.8,0.5976]
[1759830238280,1.15285231,4679.9,4679.8,0.5976]
[1759830238980,0.76846231,4679.9,4679.8,1.1227]
[1759830240480,0.01166231,4679.9,4679.8,1.1227]
[1759830243277,0.33826231,4679.9,4679.8,1.1227]
[1759830243883,0.01166231,4679.9,4679.8,1.1227]
[1759830246090,0.54296231,4679.9,4679.8,1.1227]
[1759830246280,0.01166231,4679.9,4679.8,1.1227]
[1759830251089,0.01166231,4679.9,4679.8,6.1227]
[1759830251294,0.00255553,4681.4,4681.1,0.4115]
[1759830251295,1.11668,4681.2,4681.1,0.4115]
[1759830251791,0.7324,4680.7,4680.6,3.80293]
[1759830252385,0.7324,4680.7,4680.6,4.00363]
[1759830253297,0.5313,4680.7,4680.6,4.30473]
[1759830254490,0.7324,4680.7,4680.6,4.30473]
[1759830254690,0.3141,4680.7,4680.6,4.30473]
[1759830255094,0.5313,4680.7,4680.6,4.30473]
[1759830255291,0.7324,4680.7,4680.6,4.00363]
[1759830255491,0.7324,4680.7,4680.6,4.30473]
[1759830256189,0.74711322,4680.7,4680.6,4.30473]
[1759830256595,0.74711322,4680.7,4680.6,1.09693]
[1759830257592,1.13143322,4680.7,4680.6,0.2108]
[1759830257989,1.59983079,4680.7,4680.6,0.2108]
[1759830258191,1.58511757,4680.7,4680.6,0.2108]
[1759830258390,1.6071874,4680.7,4680.6,0.2108]
[1759830259296,1.61450318,4680.7,4680.6,0.59513]
[1759830259791,1.61450318,4680.7,4680.6,0.38433]
[1759830262291,1.23018318,4680.7,4680.2,3.5089]
[1759830262497,1.11675,4680.3,4680.2,3.2078]
[1759830262797,0.80266,4680.2,4680.1,0.38437]
[1759830262992,1.11676,4680.2,4680.1,0.38437]
[1759830263297,1.11676,4680.2,4680.1,0.59517]
[1759830263494,1.14614561,4680.2,4680.1,0.59517]
[1759830263691,1.14614561,4680.2,4680.1,0.2108]
[1759830264595,0.38439,4679.9,4679.6,0.3011]
[1759830264794,1.1168,4679.8,4679.7,0.3844]
[1759830265095,1.1168,4679.8,4679.7,0.5952]
[1759830265495,1.14618561,4679.8,4679.7,0.5952]
[1759830265891,0.76178561,4679.8,4679.7,0.7959]
[1759830266097,0.77038296,4679.8,4679.7,1.097]
[1759830266795,0.35208296,4679.8,4679.7,1.097]
[1759830266987,0.35208296,4679.8,4679.7,0.7126]
[1759830267192,0.56928296,4679.8,4679.7,0.7126]
[1759830267593,0.77038296,4679.8,4679.7,0.7126]
[1759830268292,0.77038296,4679.8,4679.7,1.097]
[1759830269599,0.77038296,4679.8,4679.7,0.4115]
[1759830269799,0.77038296,4679.8,4679.5,3.2078]
[1759830269800,0.38441,4679.6,4679.5,3.2078]
[1759830270098,1.15479296,4679.6,4679.5,3.2078]
[1759830270300,1.15479296,4679.6,4679.5,3.4186]
[1759830271100,1.15479296,4679.6,4679.5,3.80302]
[1759830271294,1.15479296,4679.6,4679.5,3.2078]
[1759830271699,1.15479296,4679.6,4679.5,3.4186]
[1759830272000,0.56928296,4679.6,4679.5,3.9204]
[1759830272896,0.03798296,4679.6,4679.5,4.39662]
[1759830273894,0.35208296,4679.6,4679.5,4.39662]
[1759830274099,0.35208296,4679.6,4679.5,4.30482]
[1759830275391,0.03798296,4679.6,4679.5,4.30482]
[1759830276098,0.34018296,4679.6,4679.5,4.30482]
[1759830277004,0.54028296,4679.6,4679.5,4.30482]
[1759830277503,0.75288296,4679.6,4679.5,4.30482]
[1759830278003,0.34018296,4679.6,4679.5,4.30482]
[1759830278199,0.03798296,4679.6,4679.5,4.39692]
[1759830281907,0.35538296,4679.6,4679.5,4.39692]
[1759830282206,0.36396061,4679.6,4679.5,4.39692]
[1759830283209,0.3174,4679.6,4679.5,4.39692]
[1759830283504,0.05513826,4679.6,4679.5,4.39692]
[1759830285302,0.3174,4680.3,4680.2,0.38436]
[1759830285505,0.3174,4680.3,4680.2,4.25389884]
[1759830287709,0.5334,4680.5,4680.4,0.59465]
[1759830287911,0.8586,4680.5,4680.4,0.80885]
[1759830288111,1.24294,4680.5,4680.4,0.4245]
[1759830288411,1.24294,4680.5,4680.4,0.80885]
[1759830289715,1.24294,4680.5,4680.4,0.4245]
[1759830290413,1.24294,4680.5,4680.4,0.80885]
[1759830291515,1.24294,4680.5,4680.4,0.59855]
[1759830291712,1.24294,4680.5,4680.4,1.10855]
[1759830292008,0.8586,4680.5,4680.4,1.10855]
[1759830292606,1.24294,4680.5,4680.4,1.10855]
[1759830293011,1.24294,4680.5,4680.4,0.80885]
[1759830293210,1.12085,4680.4,4680.3,0.59465]
[1759830293416,1.12085,4680.3,4680.2,3.59216]
[1759830293616,0.80347,4680.1,4680.0,0.38437]
[1759830293817,1.12087,4680.1,4680.0,0.38437]
[1759830294014,1.12087,4680.1,4680.0,0.59857]
[1759830295727,0.5334,4680.1,4680.0,1.10857]
[1759830297318,1.12087,4680.1,4680.0,0.4245]
[1759830297522,1.12087,4680.1,4680.0,0.2142]
[1759830297824,1.12087,4680.1,4680.0,0.59858]
[1759830298025,0.7365,4680.1,4680.0,0.80888]
[1759830299231,1.12087,4680.1,4680.0,0.4245]
[1759830299431,1.12087,4680.1,4680.0,0.80888]
[1759830299624,0.7365,4680.1,4680.0,0.80888]
[1759830299824,1.12087,4680.1,4680.0,0.4245]
[1759830300032,1.12087,4680.1,4680.0,0.7242]
[1759830300228,1.12087,4680.1,4680.0,0.2142]
[1759830300529,0.7365,4679.7,4679.6,3.80641]
[1759830300733,0.7365,4679.7,4679.6,4.31641]
[1759830301933,0.3174,4680.0,4679.9,0.7242]
[1759830302121,1.24298,4680.0,4679.7,0.3844]
[1759830302322,0.8035,4679.7,4679.6,3.2078]
[1759830302623,0.8035,4679.7,4679.5,0.38442]
[1759830302624,1.1209,4679.7,4679.5,0.38442]
[1759830302828,0.7365,4679.7,4679.6,0.59861]
[1759830303029,0.7365,4679.7,4679.6,1.10861]
[1759830304234,0.7365,4679.7,4679.6,4.31641]
[1759830305532,0.7365,4679.7,4679.6,4.01671]
[1759830306933,0.7365,4679.7,4679.6,4.34131]
[1759830308532,0.3174,4679.7,4679.6,4.34131]
[1759830309636,0.3385,4680.0,4679.9,0.38439]
[1759830309937,0.3266,4680.0,4679.9,1.15009]
[1759830312943,0.543,4680.0,4679.9,1.15009]
[1759830313239,0.6636,4680.0,4679.9,1.15009]
[1759830313536,1.04798,4680.0,4679.9,0.7657]
[1759830313837,0.4175,4679.7,4679.6,3.2078]
[1759830314038,0.3266,4679.6,4679.5,0.38442]